bitfinex/quotes_ETHUSD_20250415
["timestamp","ask_amount","ask_price","bid_price","bid_amount"]
[1744730180993,1.1658,1628.0,1627.8,6.14311]
[1744730183693,6.89,1628.3,1628.0,6.1424]
[1744730183694,1.1503,1628.2,1628.0,6.1424]
[1744730183892,1.1503,1628.2,1628.0,6.81164]
[1744730184333,6.20395125,1628.1,1627.8,6.14318]
[1744730184515,0.06159125,1628.1,1627.8,12.28633]
[1744730184720,1.1503,1628.2,1628.0,6.1422]
[1744730184928,1.1503,1628.2,1628.1,6.14212]
[1744730185219,6.89,1628.3,1628.1,6.14202]
[1744730185420,6.89,1628.3,1628.2,6.14175]
[1744730185609,0.05,1628.4,1628.3,6.14137]
[1744730186006,0.05,1628.4,1628.1,6.756232]
[1744730186211,1.1306,1628.3,1628.1,3.0]
[1744730186413,1.1306,1628.3,1628.1,9.14206]
[1744730186609,1.1306,1628.3,1628.2,6.14175]
[1744730186810,1.1306,1628.3,1628.1,9.14206]
[1744730187234,0.05,1628.4,1628.1,3.0]
[1744730187422,0.05,1628.4,1628.2,6.14164]
[1744730187604,6.19104,1628.4,1628.1,9.142]
[1744730187808,6.1415,1628.3,1628.1,3.0]
[1744730188257,1.1026,1628.2,1627.9,6.14277]
[1744730188439,7.24453,1628.2,1627.9,6.14277]
[1744730188636,7.24453,1628.2,1627.9,12.3469519]
[1744730188809,7.24453,1628.2,1627.9,6.14276]
[1744730189253,7.30612125,1628.2,1627.9,6.14276]
[1744730189544,1.1026,1628.2,1628.0,6.14241]
[1744730189751,1.1026,1628.2,1628.0,12.28482]
[1744730190250,7.24435,1628.2,1627.9,13.514232]
[1744730190850,1.1026,1628.2,1627.7,13.77562786]
[1744730191019,6.14232,1628.1,1627.8,9.14324]
[1744730191537,6.20391125,1628.1,1627.8,9.14324]
[1744730191852,6.20391125,1628.1,1627.8,15.28637]
[1744730192026,1.1026,1628.2,1628.0,6.1425]
[1744730192220,6.19115,1628.4,1628.0,6.1425]
[1744730192221,0.06159125,1628.3,1628.0,12.285]
[1744730192427,13.46733,1628.4,1628.1,6.14208]
[1744730192925,1.185,1628.4,1628.2,6.14174]
[1744730193260,1.185,1628.4,1628.2,12.28348]
[1744730193467,0.05,1628.4,1628.3,6.14137]
[1744730193637,0.05,1628.4,1628.3,6.20278013]
[1744730193966,0.05,1628.4,1628.3,10.98996801]
[1744730194737,0.05,1628.4,1628.3,11.05137591]
[1744730195345,0.05,1628.4,1628.3,10.98996801]
[1744730196156,0.05,1628.4,1628.1,7.22163]
[1744730196464,7.26524,1628.3,1627.9,6.14274]
[1744730196654,7.32683125,1628.3,1628.0,12.28488]
[1744730196855,1.1238,1628.3,1628.1,6.14196]
[1744730197037,1.1238,1628.3,1627.9,6.14276]
[1744730197241,12.28411,1628.2,1627.8,12.83644]
[1744730197440,12.28411,1628.2,1627.8,14.30426479]
[1744730197624,6.142,1628.2,1627.9,6.14285]
[1744730197854,6.20359125,1628.2,1627.9,6.14285]
[1744730198041,12.34549125,1628.2,1627.9,6.14285]
[1744730198243,7.25146,1628.1,1627.7,0.74200786]
[1744730198561,1.1092,1628.1,1627.8,12.34763759]
[1744730198729,1.1092,1628.1,1627.8,12.28621]
[1744730198928,7.25134,1628.1,1627.8,6.14306]
[1744730199496,1.1092,1628.1,1628.0,6.1425]
[1744730199666,6.20340125,1628.2,1627.9,6.14287]
[1744730199835,12.34537125,1628.2,1627.8,7.19707]
[1744730200031,6.14229,1628.1,1627.7,9.14354]
[1744730200250,1.1531,1628.0,1627.8,6.14316]
[1744730200541,1.1531,1628.0,1627.7,15.28702]
[1744730200746,1.1531,1628.0,1627.8,6.14323]
[1744730200952,13.00749,1628.3,1627.9,1.6036]
[1744730201179,6.866,1628.3,1628.2,6.14175]
[1744730201479,6.866,1628.3,1628.0,3.0]
[1744730201639,6.866,1628.3,1628.0,9.14248]
[1744730201841,13.00738,1628.3,1628.0,10.20873825]
[1744730202273,13.00738,1628.3,1628.0,16.35109825]
[1744730202445,6.866,1628.3,1628.1,6.1421]
[1744730203565,6.866,1628.3,1628.1,12.28395]
[1744730203769,6.866,1628.3,1628.2,6.14175]
[1744730204055,6.866,1628.3,1628.0,15.99951819]
[1744730204385,6.866,1628.3,1628.1,6.14209]
[1744730204591,6.866,1628.3,1628.1,12.28407]
[1744730205292,6.866,1628.3,1628.2,6.14175]
[1744730205453,6.866,1628.3,1628.1,13.91897283]
[1744730205653,6.866,1628.3,1628.1,13.91900283]
[1744730206153,6.866,1628.3,1628.1,7.77699283]
[1744730206458,6.866,1628.3,1628.1,13.91899283]
[1744730206663,6.92759125,1628.3,1628.0,4.06625825]
[1744730206877,7.18784,1628.1,1627.8,6.14314]
[1744730207186,7.18784,1628.1,1627.8,12.28628]
[1744730207554,7.18784,1628.1,1627.8,6.14314]
[1744730207769,7.18784,1628.1,1627.8,12.28629]
[1744730208591,7.18784,1628.1,1627.8,6.14314]
[1744730208793,7.24943125,1628.1,1627.8,6.14314]
[1744730209465,1.0456,1628.1,1627.8,0.0614261]
[1744730209665,1.0456,1628.1,1627.9,6.14271]
[1744730210695,7.24934125,1628.1,1627.8,6.14314]
[1744730211196,7.24934125,1628.1,1627.8,12.28629]
[1744730211692,1.0456,1628.1,1627.8,12.28629]
[1744730211898,1.0456,1628.1,1627.9,6.14287]
[1744730212091,7.18778,1628.1,1627.8,7.671769]
[1744730212393,7.24937125,1628.1,1627.8,7.671769]
[1744730212820,6.1432,1627.9,1627.6,6.14391]
[1744730213099,1.10719125,1628.1,1627.6,3.0]
[1744730213407,13.83143,1628.3,1627.8,9.55966994]
[1744730213614,19.97296,1628.3,1627.9,12.28544]
[1744730214084,6.20341125,1628.2,1627.9,6.14256]
[1744730214259,6.14182,1628.2,1627.9,12.28531]
[1744730214458,13.8314,1628.3,1627.9,8.32705799]
[1744730214697,19.97304,1628.3,1628.0,6.14246]
[1744730214899,0.824,1628.3,1628.1,12.28384]
[1744730215069,0.824,1628.3,1628.1,6.14182]
[1744730215475,0.05,1628.4,1628.2,6.14175]
[1744730215787,6.14138,1628.3,1628.1,3.0]
[1744730216099,6.14138,1628.3,1628.0,18.07566994]
[1744730216100,0.8004,1628.2,1628.0,3.0]
[1744730216266,0.8004,1628.2,1628.0,4.7470088]
[1744730216465,6.94217,1628.2,1628.0,4.7470088]
[1744730216659,6.14229,1628.1,1627.7,6.14353]
[1744730216865,0.7867,1627.9,1627.6,12.28779]
[1744730217098,6.92968,1627.9,1627.7,3.0]
[1744730217307,0.7867,1627.9,1627.7,9.1436]
[1744730217611,6.92968,1627.9,1627.7,3.0]
[1744730217969,6.14357,1627.8,1627.5,6.14426]
[1744730218171,6.14357,1627.8,1627.5,7.373151]
[1744730218381,6.14348,1627.8,1627.5,7.373151]
[1744730218576,12.34851125,1627.8,1627.5,7.373151]
[1744730218925,6.14344,1627.8,1627.5,7.373151]
[1744730219219,12.28685,1627.8,1627.5,7.373151]
[1744730219373,6.92968,1627.9,1627.5,7.373151]
[1744730219577,0.7867,1627.9,1627.5,3.55]
[1744730219770,0.7867,1627.9,1627.7,6.14341]
[1744730220005,0.7867,1627.9,1627.6,0.7547]
[1744730220214,0.7867,1627.9,1627.4,1.22288002]
[1744730220388,6.92973,1627.9,1627.6,6.14399]
[1744730220592,13.13441125,1627.9,1627.6,6.14399]
[1744730220818,6.14334,1627.8,1627.5,9.14435]
[1744730221120,6.14334,1627.8,1627.5,15.2887]
[1744730221315,6.14334,1627.8,1627.5,17.54776449]
[1744730221479,0.06159125,1627.8,1627.5,17.54776449]
[1744730222124,0.06159125,1627.8,1627.2,6.14547]
[1744730222125,6.14432,1627.6,1627.2,13.10465]
[1744730222416,6.14432,1627.6,1627.2,12.29073]
[1744730222624,6.98622125,1627.7,1627.4,6.14446]
[1744730222786,13.0104,1627.8,1627.5,6.14426]
[1744730222989,6.94472,1627.9,1627.6,6.758326]
[1744730223321,6.94472,1627.9,1627.5,6.69428]
[1744730223322,6.14386,1627.7,1627.5,3.0]
[1744730223522,6.14452,1627.5,1627.2,3.0]
[1744730223733,12.28909,1627.5,1627.2,9.1454]
[1744730224120,12.28909,1627.5,1627.2,3.0]
[1744730224121,6.14477,1627.4,1627.2,3.0]
[1744730224333,6.14452,1627.5,1627.1,6.14578]
[1744730224548,6.14452,1627.5,1627.2,6.760038]
[1744730224701,0.7651,1627.7,1627.5,6.14422]
[1744730224897,6.14429,1627.6,1627.2,6.759888]
[1744730225140,6.20606125,1627.5,1627.2,6.759998]
[1744730225305,6.20606125,1627.5,1627.2,12.905408]
[1744730225950,0.7797,1627.4,1627.2,12.905408]
[1744730226453,0.7797,1627.4,1627.2,6.759988]
[1744730226647,0.7797,1627.4,1627.2,6.759968]
[1744730226852,0.7797,1627.4,1627.3,0.6759968]
[1744730227054,0.7797,1627.4,1627.3,6.8211368]
[1744730227242,0.8233,1627.6,1627.5,6.14439]
[1744730228250,0.8233,1627.9,1627.7,6.14358]
[1744730228459,0.8233,1627.9,1627.7,6.14351]
[1744730228964,6.96633,1627.9,1627.6,6.14391]
[1744730229311,6.96633,1627.9,1627.6,12.2878]
[1744730229521,0.8233,1627.9,1627.8,6.14326]
[1744730229726,13.80654,1628.1,1627.8,6.14326]
[1744730230059,19.94886,1628.1,1627.8,6.14326]
[1744730230219,19.94886,1628.1,1627.7,12.28706]
[1744730230552,13.80654,1628.1,1627.8,6.14317]
[1744730230726,7.6643,1628.1,1627.8,6.20458113]
[1744730230958,4.92503594,1628.3,1628.1,6.14209]
[1744730231255,4.92503594,1628.3,1628.1,12.28407]
[1744730231586,4.92503594,1628.3,1627.9,6.14288]
[1744730231789,6.14201,1628.2,1627.9,12.34704206]
[1744730231949,6.14176,1628.2,1627.9,6.14274]
[1744730232148,13.10234,1628.3,1628.0,6.14246]
[1744730232364,13.10234,1628.3,1627.8,9.14309]
[1744730232365,12.34553125,1628.2,1627.8,9.14309]
[1744730232557,12.28394,1628.2,1627.8,15.28618]
[1744730232774,0.06159125,1628.1,1627.8,9.14309]
[1744730232978,6.9254,1628.0,1627.8,3.0]
[1744730233411,6.98699125,1628.0,1627.8,3.0]
[1744730233690,0.7828,1628.0,1627.8,9.14323]
[1744730233894,0.7947,1628.2,1627.9,6.14288]
[1744730234094,0.7947,1628.2,1627.9,12.28576]
[1744730234392,13.14011125,1628.2,1627.9,6.14288]
[1744730234598,6.14213,1628.1,1627.8,15.28633]
[1744730234962,0.7947,1628.2,1628.0,6.14221]
[1744730235160,0.7947,1628.2,1628.1,6.14212]
[1744730235369,0.7947,1628.2,1628.0,6.14221]
[1744730235586,0.7947,1628.2,1628.0,12.28459]
[1744730235895,6.96109,1628.4,1628.1,6.14212]
[1744730236100,0.88159125,1628.4,1628.1,6.14212]
[1744730236273,7.02260125,1628.4,1628.1,6.14212]
[1744730236473,7.02260125,1628.4,1628.1,12.28413]
[1744730236897,7.02260125,1628.4,1628.1,12.28403]
[1744730237404,2.88242938,1628.4,1627.9,6.1427]
[1744730237581,6.14197,1628.2,1627.9,12.28547]
[1744730237768,12.28314,1628.3,1627.9,12.28547]
[1744730237969,6.14182,1628.2,1627.9,6.1427]
[1744730238410,6.14182,1628.2,1627.9,12.28547]
[1744730238614,12.28377,1628.2,1627.9,6.1427]
[1744730238920,7.00421125,1628.2,1627.9,6.1427]
[1744730239122,8.23258825,1628.2,1627.9,12.28547]
[1744730239425,13.14614125,1628.2,1627.9,6.1427]
[1744730239625,6.94262,1628.2,1627.9,6.1427]
[1744730239928,7.00421125,1628.2,1627.9,6.1427]
[1744730240237,0.86239125,1628.2,1627.8,3.0]
[1744730240441,0.7838,1628.1,1627.8,3.0]
[1744730240728,0.06159125,1628.0,1627.8,3.0]
[1744730241024,6.20411125,1628.0,1627.8,3.0]
[1744730241223,7.51720638,1628.0,1627.6,6.14391]
[1744730241429,6.14414,1627.6,1627.2,6.90654]
[1744730241625,0.87659125,1627.5,1627.3,6.1451]
[1744730241829,0.815,1627.5,1627.3,7.45018]
[1744730242187,0.815,1627.5,1627.3,7.45017]
[1744730242387,0.815,1627.5,1627.3,7.45016]
[1744730242704,0.815,1627.5,1627.3,13.59515]
[1744730243121,18.68586994,1628.1,1627.4,0.06144536]
[1744730243298,6.91369,1627.9,1627.5,6.14408]
[1744730243522,0.7706,1627.9,1627.7,6.14343]
[1744730243828,7.6085,1628.1,1627.8,6.14292]
[1744730244039,7.67009125,1628.1,1627.9,6.14277]
[1744730244239,7.67009125,1628.1,1627.9,6.14275]
[1744730244564,7.6085,1628.1,1627.9,6.14273]
[1744730246161,6.14345,1627.8,1627.5,6.97448]
[1744730246473,0.7983,1627.8,1627.6,6.14399]
[1744730247324,0.7983,1627.8,1627.6,6.1439]
[1744730247567,0.89209125,1628.0,1627.7,12.28691]
[1744730247868,7.03464125,1628.0,1627.7,6.14341]
[1744730248172,6.14321,1627.9,1627.5,6.14427]
[1744730248324,6.20489125,1627.8,1627.5,6.14426]
[1744730248525,13.17882125,1627.8,1627.5,6.14426]
[1744730248726,13.11723,1627.8,1627.4,9.14469]
[1744730248957,0.06159125,1627.7,1627.4,9.14469]
[1744730249271,0.8305,1628.0,1627.6,6.14373]
[1744730249576,6.14346,1627.8,1627.4,9.69471]
[1744730249771,0.8304,1627.7,1627.4,15.28942]
[1744730249928,0.8304,1627.7,1627.4,17.47497899]
[1744730250272,0.8304,1627.7,1627.4,11.33026899]
[1744730250446,0.8304,1627.7,1627.4,9.14471]
[1744730250447,6.97422,1627.7,1627.4,9.14471]
[1744730250646,0.8304,1627.7,1627.5,6.14435]
[1744730250833,6.97885125,1627.9,1627.6,6.1438]
[1744730251032,7.59314725,1627.9,1627.6,6.1438]
[1744730251731,13.73617725,1627.9,1627.6,6.1438]
[1744730251929,6.14346,1627.8,1627.4,9.14467]
[1744730252179,0.7655,1627.6,1627.4,15.28932]
[1744730252556,6.14336,1627.8,1627.6,6.14401]
[1744730252557,0.7614,1627.8,1627.6,6.14401]
[1744730252756,6.90477,1627.8,1627.4,15.28952]
[1744730252945,6.20532125,1627.7,1627.4,9.14476]
[1744730253478,0.06159125,1627.7,1627.5,6.14436]
[1744730253689,6.20528125,1627.7,1627.4,9.14467]
[1744730253890,0.06159125,1627.7,1627.2,3.8159]
[1744730254044,0.06159125,1627.7,1627.5,6.14426]
[1744730254794,0.7614,1627.8,1627.6,6.144]
[1744730255582,0.82299125,1627.8,1627.6,6.144]
[1744730255786,6.14376,1627.7,1627.4,3.0]
[1744730255998,6.90475,1627.8,1627.4,3.0]
[1744730256200,0.06159125,1627.7,1627.5,12.28854]
[1744730256384,8.27111525,1627.8,1627.5,12.28854]
[1744730256586,0.82299125,1627.8,1627.6,6.144]
[1744730256786,0.06159125,1627.8,1627.6,6.14389]
[1744730256987,6.96599125,1627.9,1627.6,6.14389]
[1744730257298,13.10901125,1627.9,1627.6,6.14389]
[1744730257501,6.9044,1627.9,1627.6,6.14389]
[1744730257671,0.06159125,1627.8,1627.6,6.14389]
[1744730258008,0.8086,1627.6,1627.3,6.1451]
[1744730258163,6.95277,1627.6,1627.2,6.14546]
[1744730258500,6.20601125,1627.5,1627.2,12.29082]
[1744730258888,0.06159125,1627.5,1627.3,6.14512]
[1744730259363,6.20600125,1627.5,1627.2,6.14541]
[1744730259563,6.20600125,1627.5,1627.2,12.29082]
[1744730259765,0.06159125,1627.5,1627.3,6.14513]
[1744730260060,6.95277,1627.6,1627.3,12.29026]
[1744730260403,0.87019125,1627.6,1627.4,6.14474]
[1744730260606,0.8086,1627.6,1627.5,6.14439]
[1744730260806,6.88559125,1627.7,1627.4,6.14467]
[1744730261006,6.14402,1627.6,1627.3,6.14499]
[1744730261189,6.14402,1627.6,1627.3,12.29001]
[1744730261392,19.11194,1627.7,1627.4,6.14473]
[1744730261715,6.14404,1627.6,1627.3,12.29001]
[1744730262118,6.824,1627.7,1627.5,6.14424]
[1744730262322,6.05,1628.0,1627.9,6.14288]
[1744730262618,0.798,1628.0,1627.9,6.14288]
[1744730262780,6.824,1628.1,1627.9,6.14288]
[1744730262968,6.824,1628.1,1627.9,12.28566]
[1744730263168,6.824,1628.1,1627.9,6.14277]
[1744730263364,6.824,1628.1,1627.9,12.899797]
[1744730263613,6.824,1628.1,1627.9,6.757037]
[1744730264399,6.824,1628.1,1627.9,12.899807]
[1744730264707,6.824,1628.1,1627.9,6.757037]
[1744730265274,13.02784125,1628.1,1627.9,0.614277]
[1744730265598,12.96625,1628.1,1627.9,0.614277]
[1744730266808,19.10863,1628.1,1627.7,6.14357]
[1744730266974,6.20419125,1628.0,1627.7,6.14357]
[1744730267305,0.8202,1627.9,1627.7,3.0]
[1744730267503,6.20495125,1627.8,1627.5,12.902994]
[1744730267665,6.20495125,1627.8,1627.6,10.4342994]
[1744730267666,0.06159125,1627.8,1627.6,10.4342994]
[1744730268404,6.20486125,1627.8,1627.6,4.2902994]
[1744730268568,0.8202,1627.9,1627.6,10.4341794]
[1744730268768,0.88179125,1627.9,1627.7,12.2871]
[1744730269009,0.88179125,1627.9,1627.7,6.14355]
[1744730269383,0.88179125,1627.9,1627.7,6.14363]
[1744730269579,0.816,1628.0,1627.7,13.94491394]
[1744730269818,0.87759125,1628.0,1627.7,13.94491394]
[1744730270166,6.14288,1627.9,1627.6,16.0792]
[1744730270393,0.816,1628.0,1627.7,6.14342]
[1744730270593,7.02025125,1628.0,1627.7,6.14342]
[1744730270810,13.16291125,1628.0,1627.7,6.14352]
[1744730271026,6.14292,1627.9,1627.6,9.14389]
[1744730271176,6.14292,1627.9,1627.6,10.24420114]
[1744730271377,0.06159125,1627.8,1627.6,10.24420114]
[1744730271887,0.06159125,1627.8,1627.6,4.10031114]
[1744730272073,6.20491125,1627.8,1627.6,4.10031114]
[1744730272409,6.20491125,1627.8,1627.6,3.0]
[1744730272907,0.06159125,1627.8,1627.6,9.14401]
[1744730273614,0.7689,1627.7,1627.4,6.97135]
[1744730273817,0.7689,1627.7,1627.4,6.14475]
[1744730273973,6.91266,1627.7,1627.4,6.14475]
[1744730274174,6.91266,1627.7,1627.4,12.28939]
[1744730274372,0.8016,1627.9,1627.6,6.14401]
[1744730274571,0.06159125,1627.8,1627.6,12.28791]
[1744730274824,0.06159125,1627.8,1627.6,12.2878]
[1744730275027,7.00617125,1627.9,1627.5,6.14433]
[1744730275350,6.14366,1627.7,1627.4,7.83014918]
[1744730275503,6.20525125,1627.7,1627.4,6.60120018]
[1744730275842,0.7734,1627.6,1627.4,6.14465]
[1744730276243,6.97902125,1627.6,1627.3,6.14507]
[1744730276603,6.97902125,1627.6,1627.3,12.29014]
[1744730277215,0.83499125,1627.6,1627.3,12.29014]
[1744730277542,6.92217,1627.8,1627.4,6.14462]
[1744730277700,6.20525125,1627.7,1627.4,12.28937]
[1744730278544,0.06159125,1627.7,1627.5,6.14436]
[1744730278746,0.06159125,1627.7,1627.5,6.14429]
[1744730279040,6.20524125,1627.7,1627.4,12.28939]
[1744730279207,0.06159125,1627.7,1627.5,6.14433]
[1744730279410,7.6029,1627.8,1627.6,6.14401]
[1744730279648,7.66449125,1627.8,1627.6,6.14401]
[1744730280509,7.66449125,1627.8,1627.7,6.14363]
[1744730280710,6.824,1627.8,1627.7,6.14363]
[1744730281149,6.824,1627.8,1627.6,6.14389]
[1744730281346,6.88559125,1627.8,1627.6,6.14389]
[1744730282647,0.06159125,1627.8,1627.6,6.14389]
[1744730282949,0.06159125,1627.8,1627.6,12.28779]
[1744730283115,6.20452125,1627.9,1627.6,13.599289]
[1744730283445,6.20452125,1627.9,1627.6,7.455389]
[1744730283622,6.20452125,1627.9,1627.6,12.28779]
[1744730283820,7.6274,1628.0,1627.7,6.14354]
[1744730284020,13.83149125,1628.0,1627.7,12.28707]
[1744730284225,13.83149125,1628.0,1627.6,6.14389]
[1744730284226,13.7699,1628.0,1627.6,6.14389]
[1744730284425,12.34757125,1627.9,1627.6,6.14389]
[1744730284624,6.14292,1627.9,1627.6,6.14389]
[1744730284825,6.20451125,1627.9,1627.6,7.455433]
[1744730285245,6.20451125,1627.9,1627.5,6.97149]
[1744730285246,0.06159125,1627.9,1627.4,7.5979931]
[1744730285412,6.14373,1627.7,1627.4,6.14465]
[1744730285614,0.8006,1627.5,1627.3,6.1451]
[1744730285949,6.14489,1627.4,1627.1,12.29159]
[1744730286315,6.94511,1627.5,1627.2,6.1455]
[1744730286520,6.802,1627.6,1627.4,6.14477]
[1744730286722,6.802,1627.6,1627.5,6.14439]
[1744730286920,0.06159125,1627.8,1627.6,6.14395]
[1744730287657,0.06159125,1627.8,1627.5,6.14439]
[1744730287658,0.8006,1627.9,1627.5,6.14439]
[1744730287815,7.00518125,1627.9,1627.6,12.28789]
[1744730288760,0.86219125,1627.9,1627.7,6.14357]
[1744730288919,0.8006,1627.9,1627.7,6.14357]
[1744730289256,0.8006,1627.9,1627.7,6.14351]
[1744730289455,0.8006,1627.9,1627.7,6.836821]
[1744730289658,0.86219125,1627.9,1627.7,6.836821]
[1744730289964,7.00507125,1627.9,1627.7,0.693311]
[1744730290168,6.14375,1627.7,1627.4,6.14466]
[1744730290318,6.95650125,1627.6,1627.3,13.07978]
[1744730290629,6.95650125,1627.6,1627.3,6.93469]
[1744730290954,4.10573594,1628.1,1628.0,6.1425]
[1744730291857,6.14149,1628.3,1628.0,12.28484]
[1744730292038,13.08327,1628.4,1628.0,12.28484]
[1744730292556,6.14142,1628.3,1628.0,6.14234]
[1744730292761,6.14142,1628.3,1628.0,12.2847]
[1744730293455,13.08335,1628.4,1628.0,12.2847]
[1744730293672,14.391685,1628.4,1628.0,12.2847]
[1744730293882,6.14141,1628.3,1628.0,6.14234]
[1744730294242,6.14178,1628.2,1627.9,6.14284]
[1744730294478,6.14141,1628.3,1627.9,6.14272]
[1744730294880,6.14141,1628.3,1628.0,6.14245]
[1744730295063,7.5805795,1628.3,1628.0,6.14245]
[1744730295269,6.94195,1628.4,1628.1,6.14183]
[1744730295579,0.8009,1628.4,1628.1,6.14181]
[1744730295939,6.94192,1628.4,1628.1,6.14181]
[1744730296143,0.8009,1628.4,1628.1,6.14181]
[1744730296341,0.8009,1628.4,1628.2,6.14172]
[1744730296572,6.9419,1628.4,1628.1,12.28382]
[1744730296748,6.14163,1628.3,1628.0,3.0]
[1744730296955,13.08315,1628.4,1628.0,15.28485]
[1744730297184,6.14139,1628.3,1628.0,9.14236]
[1744730297572,13.08327,1628.4,1628.0,9.14236]
[1744730297775,6.94198,1628.4,1628.1,6.14194]
[1744730297985,8.250247,1628.4,1628.1,6.14194]
[1744730298285,14.391447,1628.4,1628.1,6.14194]
[1744730298445,8.250247,1628.4,1628.1,6.14194]
[1744730298658,6.94197,1628.4,1628.1,6.14194]
[1744730298859,0.8009,1628.4,1627.8,6.97534]
[1744730299191,6.14203,1628.2,1627.9,6.14284]
[1744730299496,6.14202,1628.2,1627.9,6.14285]
[1744730299655,13.512277,1628.2,1627.9,6.14285]
[1744730300395,13.512177,1628.2,1627.9,6.14285]
[1744730300776,6.14214,1628.1,1627.8,6.97533]
[1744730300971,13.10373,1628.1,1627.7,15.28704]
[1744730301163,6.14254,1628.0,1627.7,9.14352]
[1744730301507,0.8192,1628.1,1627.8,6.14316]
[1744730301508,6.96144,1628.1,1627.8,6.14316]
[1744730301662,8.3946037,1628.1,1627.8,6.14316]
[1744730302000,0.8192,1628.1,1627.8,6.14313]
[1744730302494,7.5599,1628.3,1628.1,6.14212]
[1744730302695,6.801,1628.3,1628.1,12.28415]
[1744730302892,6.801,1628.3,1628.2,6.14175]
[1744730303099,6.801,1628.3,1628.1,6.14203]
[1744730303502,6.801,1628.3,1628.1,12.28405]
[1744730305366,6.801,1628.3,1628.1,6.14202]
[1744730306009,6.801,1628.3,1628.1,12.28403]
[1744730306698,6.801,1628.3,1628.1,6.14201]
[1744730307990,6.801,1628.3,1628.1,12.28402]
[1744730308503,6.801,1628.3,1628.1,6.14201]
[1744730309190,6.801,1628.3,1628.1,12.28403]
[1744730309603,6.801,1628.3,1628.1,6.14201]
[1744730309802,6.801,1628.3,1628.1,12.28403]
[1744730310006,0.05,1628.4,1628.2,6.14173]
[1744730311508,0.05,1628.4,1628.3,6.14137]
[1744730312175,0.05,1628.4,1628.2,6.14156]
[1744730312885,0.05,1628.4,1628.2,12.2832]
[1744730313085,0.05,1628.4,1628.2,7.41582468]
[1744730313385,0.05,1628.4,1628.3,6.14137]
[1744730313977,0.05,1628.4,1628.2,7.41582468]
[1744730314177,0.05,1628.4,1628.2,13.55745468]
[1744730314708,0.05,1628.4,1628.3,6.14137]
[1744730315112,0.05,1628.4,1628.3,7.49708947]
[1744730315315,0.05,1628.4,1628.3,11.88018947]
[1744730315804,1e-05,1628.4,1628.3,11.88018947]
[1744730316394,1e-05,1628.4,1628.3,18.65818947]
[1744730317915,1e-05,1628.4,1628.3,11.88018947]
[1744730318080,1e-05,1628.4,1628.3,11.33018947]
[1744730319030,1e-05,1628.4,1628.3,10.49708947]
[1744730319412,1e-05,1628.4,1628.3,7.49708947]
[1744730319720,1e-05,1628.4,1628.3,10.49708947]
[1744730320230,1e-05,1628.4,1628.3,10.55849654]
[1744730320526,1e-05,1628.4,1628.3,16.28795941]
[1744730320732,1e-05,1628.4,1628.3,17.60305941]
[1744730325019,1e-05,1628.4,1628.3,24.37905941]
[1744730325417,1e-05,1628.4,1628.3,18.58818947]
[1744730326539,0.005,1628.9,1628.8,10.51538]
[1744730326843,0.005,1628.9,1628.8,18.03313541]
[1744730327044,0.005,1628.9,1628.8,17.97175594]
[1744730327343,0.005,1628.9,1628.8,18.42787652]
[1744730329621,0.005,1628.9,1628.8,8.81110658]
[1744730329823,0.005,1628.9,1628.8,11.81110658]
[1744730331921,0.005,1628.9,1628.8,11.354986]
[1744730333056,0.005,1628.9,1628.8,12.17806961]
[1744730333221,1e-05,1628.9,1628.8,12.17806961]
[1744730333555,1.4e-06,1629.0,1628.9,6.68911]
[1744730333749,1.4e-06,1629.0,1628.9,9.13477596]
[1744730334055,1.4e-06,1629.0,1628.9,14.98702438]
[1744730334361,1.4e-06,1629.0,1628.9,14.9256459]
[1744730335856,1.4e-06,1629.0,1628.9,17.9256459]
[1744730340043,1.4e-06,1629.0,1628.9,18.7116459]
[1744730341192,1.4e-06,1629.4,1629.3,6.1376]
[1744730341336,0.95847531,1630.3,1629.7,0.55]
[1744730341534,0.8299,1630.2,1629.7,6.13603]
[1744730341734,0.12857531,1630.3,1629.4,3.0]
[1744730341735,0.8299,1629.8,1629.4,3.0]
[1744730341940,6.96574,1629.8,1629.5,6.13685]
[1744730342240,0.696574,1629.7,1629.6,6.13647]
[1744730342494,0.8299,1629.8,1629.5,6.13668]
[1744730342635,0.8299,1629.8,1629.5,12.27336]
[1744730342837,0.8299,1629.8,1629.6,6.13634]
[1744730343037,0.8299,1629.8,1629.5,6.13685]
[1744730343238,0.8299,1629.8,1629.5,12.27353]
[1744730343434,0.8299,1629.8,1629.5,12.2734]
[1744730343772,0.8299,1629.8,1629.6,6.13627]
[1744730344317,1.526432,1629.8,1629.6,6.13627]
[1744730344524,0.8299,1629.8,1629.6,6.13627]
[1744730344881,6.96569,1629.8,1629.4,9.13705]
[1744730345111,6.96569,1629.8,1629.5,6.13667]
[1744730345303,0.8299,1629.8,1629.5,6.13667]
[1744730345618,0.8299,1629.8,1629.6,12.27257]
[1744730345915,7.5514,1630.0,1629.8,6.13555]
[1744730346123,0.7784,1630.2,1629.9,6.13534]
[1744730346292,6.1346,1630.1,1629.8,9.13566]
[1744730346491,0.7784,1630.0,1629.8,3.0]
[1744730346724,0.7784,1630.0,1629.9,6.13534]
[1744730346911,0.7784,1630.0,1629.8,9.13559]
[1744730347287,0.7784,1630.0,1629.9,6.13534]
[1744730347492,0.7784,1630.0,1629.8,9.13559]
[1744730347710,0.7784,1630.0,1629.8,9.19691964]
[1744730347906,0.7784,1630.2,1630.1,6.68459]
[1744730348119,0.7784,1630.2,1630.1,6.19592874]
[1744730348724,0.12857531,1630.3,1630.1,12.33051874]
[1744730348906,0.12857531,1630.3,1630.1,12.26903]
[1744730349109,0.12857531,1630.3,1630.1,3.0]